bitfinex-derivatives/quotes_SOLF0:USTF0_20240906
["timestamp","ask_amount","ask_price","bid_price","bid_amount"]
[1725613299479,3.94314585,128.56,128.54,3.8902]
[1725613300375,7.83294585,128.56,128.54,3.8902]
[1725613301179,7.83294585,128.56,128.53,3.94381155]
[1725613301479,3.94314585,128.56,128.53,3.94381155]
[1725613301880,7.83304585,128.56,128.53,3.94381155]
[1725613304485,7.83304585,128.56,128.54,3.8903]
[1725613304884,3.94314585,128.56,128.54,3.8903]
[1725613305783,7.83304585,128.56,128.54,3.8903]
[1725613311992,0.05797501,128.56,128.54,3.8903]
[1725613312292,0.05797501,128.56,128.55,3.8901]
[1725613314189,0.05797501,128.56,128.55,15.8601]
[1725613317686,3.8881,128.62,128.59,3.8887]
[1725613318287,7.73341057,128.63,128.6,3.8884]
[1725613318691,7.78571578,128.63,128.6,3.94563606]
[1725613319093,15.86791578,128.63,128.6,0.05723606]
[1725613319802,3.888,128.62,128.6,0.05723606]
[1725613321198,3.888,128.62,128.6,3.94573606]
[1725613322702,3.888,128.62,128.6,0.05723606]
[1725613322899,15.8583,128.61,128.6,0.05723606]
[1725613323200,11.97,128.61,128.53,16.0235]
[1725613323396,3.8893,128.58,128.55,3.8898]
[1725613324198,3.93882793,128.58,128.55,3.94863504]
[1725613326207,3.8895,128.57,128.55,3.94863504]
[1725613327804,3.8898,128.56,128.55,0.05883504]
[1725613328004,7.74397107,128.56,128.55,0.05883504]
[1725613328198,3.8898,128.56,128.55,0.05883504]
[1725613328801,15.8597,128.57,128.55,0.05883504]
[1725613330099,7.75780046,128.56,128.55,0.05883504]
[1725613330603,3.8898,128.56,128.55,0.05883504]
[1725613331010,7.85782825,128.56,128.55,0.05883504]
[1725613332309,19.82782825,128.56,128.55,0.05883504]
[1725613333410,15.93802825,128.56,128.48,4.1035]
[1725613333617,11.97,128.53,128.47,11.97]
[1725613333811,3.8915,128.51,128.48,3.8921]
[1725613334515,3.94540376,128.51,128.48,3.8921]
[1725613334913,11.97,128.5,128.48,0.0494286]
[1725613335112,11.97,128.5,128.4,74.36530828]
[1725613335113,11.97,128.49,128.41,15.90211072]
[1725613335319,11.97,128.47,128.41,15.90211072]
[1725613335614,11.97,128.47,128.43,3.8936]
[1725613336005,3.893,128.46,128.43,3.8936]
[1725613336213,3.95073716,128.46,128.44,0.05006231]
[1725613336720,0.05773716,128.46,128.44,3.94346231]
[1725613342915,3.95063716,128.46,128.44,3.94346231]
[1725613343823,0.05773716,128.46,128.44,3.94346231]
[1725613346128,0.05773716,128.46,128.45,3.8931]
[1725613352618,0.05773716,128.46,128.45,15.8631]
[1725613357236,3.8915,128.51,128.45,11.97]
[1725613357430,3.8915,128.51,128.46,11.97]
[1725613357934,3.8915,128.51,128.48,3.892]
[1725613358333,3.95127035,128.51,128.48,3.94306948]
[1725613359039,3.95127035,128.51,128.49,3.8918]
[1725613359428,0.05977035,128.51,128.48,0.05106948]
[1725613359628,0.05977035,128.51,128.48,3.94316948]
[1725613359629,3.8918,128.5,128.48,3.94316948]
[1725613360538,3.95117035,128.51,128.49,3.8919]
[1725613363240,3.8916,128.5,128.48,3.94306948]
[1725613367042,15.92127035,128.51,128.49,3.8918]
[1725613367934,11.97,128.5,128.48,0.05106948]
[1725613368333,13.3658,128.5,128.48,0.05106948]
[1725613369235,3.8919,128.49,128.48,0.05106948]
[1725613369435,7.68890038,128.49,128.48,0.05106948]
[1725613379442,19.65890038,128.49,128.48,0.05106948]
[1725613381744,15.76700038,128.49,128.41,3.93211072]
[1725613382045,11.97,128.46,128.4,11.97]
[1725613382245,3.8931,128.45,128.43,3.8935]
[1725613382443,7.87519598,128.45,128.43,3.8935]
[1725613382642,7.92560734,128.45,128.43,3.8935]
[1725613387348,7.92560734,128.45,128.43,3.95299943]
[1725613389449,0.05041136,128.45,128.44,3.8934]
[1725613400353,0.05041136,128.45,128.44,15.8634]
[1725613400551,0.05041136,128.45,128.44,17.2666]
[1725613403548,3.8917,128.5,128.48,3.892]
[1725613404654,3.94408461,128.5,128.48,3.94982625]
[1725613408765,15.91408461,128.5,128.48,3.94982625]
[1725613409455,15.8619,128.49,128.48,0.05782625]
[1725613409766,15.95740481,128.49,128.42,1.3161]
[1725613409970,15.8629,128.46,128.43,3.8935]
[1725613410167,15.8629,128.46,128.41,15.8122845]
[1725613410676,3.8931,128.45,128.42,0.05064939]
[1725613410862,3.94242895,128.45,128.42,0.05064939]
[1725613411866,0.04932895,128.45,128.43,3.8934]
[1725613414968,0.04932895,128.45,128.44,3.8934]
[1725613416465,0.04932895,128.45,128.43,11.97]
[1725613416466,15.8621,128.49,128.43,14.6836]
[1725613416671,3.8921,128.49,128.45,11.97]
[1725613417263,3.8921,128.49,128.46,3.8927]
[1725613417467,3.94887139,128.49,128.46,3.95232461]
[1725613417670,3.94887139,128.49,128.47,3.8923]
[1725613417861,0.05677139,128.49,128.46,0.05962461]
[1725613418768,0.05677139,128.49,128.47,3.8922]
[1725613419372,0.05677139,128.49,128.48,3.8922]
[1725613422879,0.05677139,128.49,128.48,15.8622]
[1725613426685,0.05677139,128.49,128.48,19.77064269]
[1725613427085,0.05677139,128.49,128.48,15.8622]
[1725613427981,0.05677139,128.49,128.48,3.8922]
[1725613431694,0.05677139,128.49,128.47,3.8923]
[1725613433900,3.92160524,128.49,128.47,3.8923]
[1725613435309,7.81350524,128.49,128.47,3.8923]
[1725613435601,15.89160524,128.49,128.46,3.95232461]
[1725613435999,3.8923,128.48,128.46,3.95232461]
[1725613436700,3.8925,128.47,128.46,0.05962461]
[1725613437002,0.05677139,128.49,128.46,0.05962461]
[1725613437606,3.94887139,128.49,128.46,0.05962461]
[1725613437904,3.94887139,128.49,128.46,12.02962461]
[1725613438301,0.05677139,128.49,128.47,3.8925]
[1725613440301,0.05677139,128.49,128.48,15.8622]
[1725613441009,2.8291,128.55,128.5,11.97]
[1725613441918,0.05719005,128.54,128.51,0.05099554]
[1725613442105,3.94779005,128.54,128.51,3.94209554]
[1725613445017,0.05719005,128.54,128.52,3.8907]
[1725613445718,3.94779005,128.54,128.52,3.8907]
[1725613450713,0.05719005,128.54,128.53,3.8907]
[1725613450920,0.05719005,128.54,128.53,15.8607]
[1725613452217,3.8884,128.61,128.58,3.8891]
[1725613452412,4.1453,128.64,128.58,3.8891]
[1725613452614,16.1153,128.64,128.58,3.8891]
[1725613452823,3.8882,128.62,128.58,3.8891]
[1725613453024,7.78258083,128.62,128.58,3.8891]
[1725613453324,0.05312073,128.61,128.59,0.05999502]
[1725613454124,0.05312073,128.61,128.59,3.94889502]
[1725613454623,0.05312073,128.61,128.6,3.8886]
[1725613459325,6.83268749,128.71,128.6,11.97]
[1725613459525,0.28592668,128.7,128.65,11.97]
[1725613459726,0.28587151,128.69,128.65,11.97]
[1725613459927,3.8861,128.69,128.65,11.97]
[1725613460430,3.8861,128.68,128.66,3.93736089]
[1725613460631,20.1069175,128.71,128.66,0.05066089]
[1725613460828,12.31479193,128.7,128.66,0.05066089]
[1725613461034,0.28587864,128.69,128.66,0.05066089]
[1725613461333,3.8861,128.68,128.66,0.05066089]
[1725613462133,3.8864,128.67,128.66,0.05066089]
[1725613464232,3.8873,128.65,128.6,2.6807]
[1725613464437,3.8873,128.65,128.6,14.6507]
[1725613464630,3.8873,128.65,128.62,3.8878]
[1725613465337,0.05051692,128.65,128.64,11.97]
[1725613465834,0.05051692,128.65,128.64,15.8573]
[1725613466637,0.05051692,128.65,128.62,12.02723051]
[1725613467436,0.05051692,128.65,128.63,3.8877]
[1725613467634,0.05051692,128.65,128.62,12.02723051]
[1725613468334,0.05051692,128.65,128.64,3.8873]
[1725613472337,0.05051692,128.65,128.63,3.8875]
[1725613473441,3.93761692,128.65,128.63,3.8875]
[1725613474939,3.93761692,128.65,128.63,15.8575]
[1725613475243,0.05051692,128.65,128.63,15.8575]
[1725613478037,0.05051692,128.65,128.64,15.8573]
[1725613478839,112.74371199,128.71,128.66,3.8866]
[1725613479035,112.74371199,128.71,128.67,11.97]
[1725613479638,3.8861,128.68,128.67,11.97]
[1725613480544,0.05849098,128.69,128.68,3.8861]
[1725613480747,0.05849098,128.69,128.68,15.8561]
[1725613482443,0.05849098,128.69,128.68,11.97]
[1725613482643,0.05849098,128.69,128.67,15.8562]
[1725613485351,0.05849098,128.69,128.68,3.8861]
[1725613486152,0.05849098,128.69,128.68,15.8561]
[1725613489752,0.05849098,128.69,128.68,3.8861]
[1725613490050,3.8861,128.68,128.66,12.023368]
[1725613490445,3.94449098,128.69,128.66,15.909868]
[1725613491052,0.05849098,128.69,128.67,11.97]
[1725613491647,0.05849098,128.69,128.68,11.97]
[1725613492451,0.05849098,128.69,128.68,15.8561]
[1725613493952,3.8851,128.72,128.7,3.8855]
[1725613494157,3.8851,128.72,128.7,15.8555]
[1725613494758,109.35481966,128.76,128.7,15.8555]
[1725613494961,0.0555792,128.74,128.72,0.05167612]
[1725613495157,3.97661916,128.73,128.72,0.05167612]
[1725613495461,8.146996,128.73,128.72,0.05167612]
[1725613499056,4.17037684,128.73,128.72,0.05167612]
[1725613500163,3.8846,128.73,128.72,0.05167612]
[1725613502164,3.9401792,128.74,128.72,0.05167612]
[1725613502356,3.9401792,128.74,128.72,15.90657612]
[1725613504369,0.0555792,128.74,128.72,0.05167612]
[1725613504761,0.0555792,128.74,128.72,12.02167612]
[1725613505361,0.0555792,128.74,128.72,15.90637612]
[1725613505757,0.0555792,128.74,128.73,15.8546]
[1725613506761,0.0555792,128.74,128.73,11.97]
[1725613507173,3.9398792,128.74,128.73,11.97]
[1725613507868,0.0555792,128.74,128.72,0.05167612]
[1725613508363,3.8846,128.73,128.72,0.05167612]
[1725613511372,12.25577155,128.73,128.57,7.7786]
[1725613511575,11.97,128.69,128.63,11.97]
[1725613511770,3.89281944,128.68,128.63,11.97]
[1725613511967,3.8866,128.67,128.63,11.97]
[1725613512265,14.7437,128.71,128.64,11.97]
[1725613512466,40.54163486,128.81,128.7,11.97]
[1725613512664,14.6588,128.77,128.74,0.04921656]
[1725613512866,0.28581133,128.76,128.74,0.05206198]
[1725613513165,3.884,128.75,128.74,0.05206198]
[1725613513373,0.28581133,128.75,128.74,0.05206198]
[1725613513563,3.884,128.75,128.74,0.05206198]
[1725613518971,2.7444214,128.77,128.75,3.8839]
[1725613519168,0.0556214,128.77,128.74,12.02206198]
[1725613519874,0.0556214,128.77,128.76,11.97]
[1725613520576,0.0556214,128.77,128.74,3.93626198]
[1725613520880,0.0556214,128.77,128.75,11.97]
[1725613521280,3.8839,128.76,128.75,11.97]
[1725613522582,4.16959828,128.76,128.75,11.97]
[1725613523180,3.9392214,128.77,128.75,11.97]
[1725613523393,3.9392214,128.77,128.76,11.97]
[1725613523580,4.22490635,128.77,128.76,11.97]
[1725613523885,0.34130635,128.77,128.76,11.97]
[1725613524071,0.34129917,128.77,128.76,11.97]
[1725613524376,3.9390214,128.77,128.75,11.97]
[1725613524579,0.28567777,128.76,128.75,11.97]
[1725613524881,3.9392214,128.77,128.75,15.854]
[1725613525077,0.28567777,128.76,128.75,15.854]
[1725613527982,3.8837,128.76,128.75,11.97]
[1725613528283,4.1694164,128.76,128.75,11.97]
[1725613528493,0.2857164,128.76,128.75,11.97]
[1725613530581,3.9392214,128.77,128.75,15.854]
[1725613532583,3.8839,128.76,128.74,0.05206198]
[1725613532893,3.8839,128.76,128.74,12.02206198]
[1725613533387,3.9392214,128.77,128.74,15.90616198]
[1725613533596,3.9392214,128.77,128.75,11.97]
[1725613534496,3.9392214,128.77,128.75,15.854]
[1725613535483,3.9392214,128.77,128.76,11.97]
[1725613537101,0.0556214,128.77,128.76,15.8537]
[1725613537886,3.8826,128.8,128.78,3.883]
[1725613538091,3.8826,128.8,128.79,11.97]
[1725613538688,3.8828,128.79,128.77,3.8833]
[1725613538888,3.8828,128.79,128.77,3.94207358]
[1725613539090,3.92355667,128.8,128.77,0.05877358]
[1725613539291,3.8831,128.78,128.77,0.05877358]
[1725613539590,7.77466513,128.78,128.77,0.05877358]
[1725613543001,8.06034672,128.78,128.77,0.05877358]
[1725613544096,8.06034677,128.78,128.77,0.05877358]
[1725613545701,4.16878164,128.78,128.77,0.05877358]
[1725613546198,7.85522516,128.78,128.77,0.05877358]
[1725613547303,3.8831,128.78,128.77,0.05877358]
[1725613548802,3.8831,128.78,128.77,12.02877358]
[1725613549103,0.04986388,128.79,128.77,12.02877358]
[1725613549409,0.04986388,128.79,128.78,11.97]
[1725613550508,0.04986388,128.79,128.78,15.8531]
[1725613553101,3.93266388,128.79,128.78,11.97]
[1725613553306,3.93266388,128.79,128.77,15.91207358]
[1725613553922,3.8831,128.78,128.77,12.02877358]
[1725613554499,3.93286388,128.79,128.77,15.91217358]
[1725613558408,0.04986388,128.79,128.78,3.8831]
[1725613558608,0.04986388,128.79,128.78,15.8531]
[1725613558911,0.28559784,128.82,128.78,11.97]
[1725613559112,2.7281,128.85,128.81,11.97]
[1725613559113,3.79971181,128.83,128.81,11.97]
[1725613559413,4.16759661,128.82,128.81,11.97]
[1725613560106,0.28559661,128.82,128.81,11.97]
[1725613560303,0.28558497,128.82,128.81,15.8522]
[1725613560913,3.94154249,128.83,128.81,15.8522]
[1725613561311,3.8819,128.82,128.81,11.97]
[1725613561913,3.8819,128.82,128.8,15.90220016]
[1725613568221,0.05974249,128.83,128.81,11.97]
[1725613568420,0.05974249,128.83,128.82,11.97]
[1725613568723,7.73893565,128.88,128.85,3.8808]
[1725613568919,0.28549874,128.87,128.86,11.97]
[1725613569323,7.73893565,128.88,128.86,11.97]
[1725613569324,3.8803,128.88,128.86,11.97]
[1725613569516,0.28548173,128.87,128.86,15.8507]
[1725613569821,7.71951429,128.88,128.86,15.8507]
[1725613570918,7.7726473,128.88,128.86,11.97]
[1725613571613,3.8804,128.87,128.86,11.97]
[1725613571920,4.16588182,128.87,128.86,11.97]
[1725613572222,3.8804,128.87,128.86,11.97]
[1725613573130,4.1658818,128.87,128.86,11.97]
[1725613573828,3.8807,128.86,128.85,0.04922067]
[1725613574327,3.8806,128.87,128.85,12.01922067]
[1725613575623,3.8807,128.86,128.85,12.01922067]
[1725613575831,3.83913157,128.88,128.85,12.01922067]
[1725613576321,3.8806,128.87,128.85,15.90022067]
[1725613577620,3.8807,128.86,128.85,0.04922067]
[1725613578223,7.81579336,128.86,128.85,0.04922067]
[1725613578428,3.8807,128.86,128.85,0.04922067]
[1725613581324,3.8806,128.87,128.85,3.93012067]
[1725613581524,3.8806,128.87,128.85,15.90012067]
[1725613581923,3.95833193,128.88,128.85,12.01922067]
[1725613582230,0.28548795,128.87,128.85,12.01922067]
[1725613582427,4.02589727,128.88,128.85,12.01922067]
[1725613582628,3.8807,128.86,128.85,12.01922067]
[1725613583129,4.16618971,128.86,128.85,12.01922067]
[1725613584128,4.16618971,128.86,128.85,0.04922067]
[1725613585732,0.28548971,128.86,128.85,3.93022067]
[1725613586033,0.28548971,128.86,128.85,15.90022067]
[1725613586424,0.28548971,128.86,128.85,12.01922067]
[1725613586929,3.93333301,128.88,128.85,12.01922067]
[1725613587229,0.05313301,128.88,128.87,11.97]
[1725613588525,0.05313301,128.88,128.87,15.8504]
[1725613588726,0.33856227,128.88,128.85,0.04922067]
[1725613589235,0.28542926,128.87,128.85,0.04922067]
[1725613589427,0.05313301,128.88,128.85,0.04922067]
[1725613589730,3.8805,128.87,128.85,3.93022067]
[1725613591830,3.8805,128.87,128.85,0.04922067]
[1725613592531,3.8807,128.86,128.85,0.04922067]
[1725613596135,3.9036457,128.85,128.79,11.97]
[1725613596334,3.85122431,128.84,128.8,11.97]
[1725613596530,1.4344,128.87,128.81,11.97]
[1725613596737,0.28552773,128.86,128.81,11.97]
[1725613596930,0.28552773,128.86,128.82,0.05889395]
[1725613596931,3.8816,128.84,128.82,0.05889395]
[1725613597131,0.05835685,128.85,128.82,0.05889395]
[1725613597531,3.8813,128.84,128.82,0.05889395]
[1725613597728,0.05835685,128.85,128.82,0.05889395]
[1725613598343,3.8813,128.84,128.82,0.05889395]
[1725613598640,0.05835685,128.85,128.82,0.05889395]
[1725613599042,3.8816,128.83,128.82,0.05889395]
[1725613599636,4.16717406,128.83,128.82,0.05889395]
[1725613600538,4.16717277,128.83,128.82,0.05889395]
[1725613604647,4.16717302,128.83,128.82,0.05889395]
[1725613606443,3.8816,128.83,128.82,0.05889395]
[1725613610849,3.8814,128.84,128.82,12.02889395]
[1725613611050,0.05835685,128.85,128.82,12.02889395]
[1725613612246,0.05835685,128.85,128.82,0.05889395]
[1725613613051,0.3438849,128.85,128.82,0.05889395]
[1725613613640,3.8813,128.84,128.82,0.05889395]
[1725613614946,0.05835685,128.85,128.82,0.05889395]
[1725613614947,3.8816,128.83,128.82,0.05889395]
[1725613617247,3.93945685,128.85,128.82,12.02889395]
[1725613617451,3.93945685,128.85,128.84,11.97]
[1725613617651,3.93945685,128.85,128.82,12.02889395]
[1725613618449,0.05835685,128.85,128.84,11.97]
[1725613618651,0.28546267,128.89,128.84,11.97]
[1725613618844,0.28546267,128.89,128.86,15.8507]
[1725613619046,7.97263023,128.89,128.86,15.8507]
[1725613619242,7.68716756,128.89,128.86,15.8507]
[1725613619754,7.68716756,128.89,128.86,15.90004525]
[1725613620452,7.74660105,128.89,128.86,15.90004525]
[1725613620763,3.86650105,128.89,128.86,15.90004525]
[1725613622757,3.86650105,128.89,128.86,3.93004525]
[1725613622954,3.86650105,128.89,128.86,15.90004525]
[1725613623656,7.74640105,128.89,128.86,12.01934525]
[1725613624352,3.86650105,128.89,128.86,12.01934525]
[1725613624756,7.74650105,128.89,128.86,0.04934525]
[1725613625057,11.97,128.87,128.86,0.04934525]
[1725613625358,3.8804,128.87,128.86,0.04934525]
[1725613625553,11.97,128.88,128.86,0.04934525]
[1725613625959,0.28549075,128.87,128.86,0.04934525]
[1725613626564,3.8804,128.87,128.86,0.04934525]
[1725613626769,4.16588966,128.87,128.86,0.04934525]
[1725613626955,3.8804,128.87,128.86,0.04934525]
[1725613628559,4.16588914,128.87,128.86,0.04934525]
[1725613629958,3.8803,128.88,128.86,0.04934525]
[1725613630154,0.28548899,128.87,128.86,0.04934525]
[1725613630768,7.74640105,128.89,128.86,0.04934525]
[1725613630962,7.74640105,128.89,128.86,12.01934525]
[1725613633167,3.86650105,128.89,128.86,15.89994525]
[1725613633768,3.86650105,128.89,128.86,0.04934525]
[1725613634066,11.97,128.87,128.8,1.3735]
[1725613634254,11.97,128.87,128.78,1.3389]
[1725613634255,12.25551972,128.86,128.79,11.97]
[1725613634458,11.97,128.84,128.78,13.3089]
[1725613634662,3.8823,128.81,128.77,3.8833]
[1725613634968,11.97,128.81,128.75,3.92478138]
[1725613635264,3.96787671,128.8,128.77,0.05001127]
[1725613635466,0.05325955,128.79,128.77,0.05001127]
[1725613636673,0.05325955,128.79,128.77,3.93321127]
[1725613637369,0.05325955,128.79,128.77,0.05001127]
[1725613638166,0.05325955,128.79,128.78,3.8831]
[1725613641068,3.8811,128.85,128.81,3.882]
[1725613641365,1.3417,128.87,128.81,29.83]
[1725613641668,3.93593266,128.86,128.81,29.83]
[1725613641872,0.05395133,128.85,128.82,0.05679687]
[1725613642264,0.05395133,128.85,128.84,3.8813]
[1725613657882,0.05395133,128.85,128.82,0.05679687]
[1725613659284,0.05395133,128.85,128.84,3.8813]
[1725613664079,0.05395133,128.85,128.84,15.8113]
[1725613666079,0.05395133,128.85,128.84,3.8813]
[1725613670490,3.93495133,128.85,128.83,3.8814]
[1725613670686,0.05395133,128.85,128.82,0.05679687]
[1725613672493,0.05395133,128.85,128.84,3.8813]
[1725613675807,3.93505133,128.85,128.83,3.8815]
[1725613676000,3.93505133,128.85,128.82,0.05679687]
[1725613677106,3.93505133,128.85,128.83,3.8816]
[1725613677907,3.8813,128.84,128.82,3.93859687]
[1725613678107,0.05395133,128.85,128.82,0.05679687]
[1725613678809,0.05395133,128.85,128.84,3.8813]
[1725613681106,1.3253,128.91,128.87,3.8802]
[1725613681311,5.29215106,128.91,128.83,29.83]
[1725613681498,3.8803,128.88,128.82,29.83]
[1725613681705,29.83,128.9,128.8,32.5524]
[1725613681906,3.8812,128.85,128.84,0.05452596]
[1725613682413,3.8816,128.83,128.78,29.83]
[1725613682613,7.83641382,128.83,128.81,3.8821]
[1725613683213,3.8815,128.84,128.78,29.83]
[1725613683400,7.76370212,128.84,128.78,29.83]
[1725613683714,7.76370212,128.84,128.8,0.05155846]
[1725613683910,7.76370212,128.84,128.81,3.8819]
[1725613684119,7.81419108,128.84,128.81,3.8819]
[1725613685720,7.81419108,128.84,128.8,0.05155846]
[1725613685721,7.81419108,128.84,128.82,3.8819]
[1725613688518,3.8816,128.83,128.81,3.882]
[1725613688718,3.8816,128.83,128.8,0.05155846]
[1725613689018,33.76269108,128.84,128.8,0.05155846]
[1725613689210,35.09489108,128.84,128.8,0.05155846]
[1725613689409,3.882,128.82,128.8,0.05155846]
[1725613690323,3.882,128.82,128.8,3.93405846]
[1725613690815,35.09489108,128.84,128.8,0.05155846]
[1725613691721,3.8817,128.83,128.8,3.93405846]
[1725613691919,35.09489108,128.84,128.8,3.93405846]
[1725613692115,35.09489108,128.84,128.8,0.05155846]
[1725613692316,3.882,128.82,128.8,0.05155846]
[1725613694020,3.8822,128.81,128.8,0.05155846]
[1725613695525,3.8821,128.82,128.8,0.05155846]
[1725613695725,35.09489108,128.84,128.8,0.05155846]
[1725613697416,35.09489108,128.84,128.81,3.8821]
[1725613697417,3.8818,128.83,128.81,3.8821]
[1725613698326,3.8818,128.83,128.8,3.93395846]
[1725613698517,3.882,128.82,128.8,3.93395846]
[1725613698828,29.83,128.83,128.8,0.05155846]
[1725613699025,3.8822,128.81,128.8,0.05155846]
[1725613699529,3.8821,128.82,128.8,0.05155846]
[1725613699723,1.409,128.83,128.8,0.05155846]
[1725613700122,1.409,128.83,128.81,3.882]
[1725613701730,38.97639108,128.84,128.81,3.882]
[1725613701925,38.97639108,128.84,128.82,3.8819]
[1725613702127,9.14639108,128.84,128.82,3.8819]
[1725613703227,9.14639108,128.84,128.81,3.882]
[1725613707433,9.14639108,128.84,128.82,3.8819]
[1725613707630,7.81419108,128.84,128.82,3.8819]
[1725613709231,0.05048896,128.84,128.83,3.8816]
[1725613719438,29.83,128.91,128.83,29.83]
[1725613719641,0.28540482,128.9,128.83,29.83]
[1725613719837,3.79687005,128.89,128.83,29.83]
[1725613720136,29.83,128.91,128.88,3.8799]
[1725613720436,29.8865639,128.91,128.88,3.93770828]
[1725613720631,3.8797,128.9,128.88,3.93770828]
[1725613721433,3.9009258,128.89,128.88,3.93770828]
[1725613722137,3.9009258,128.89,128.88,0.05780828]
[1725613726535,3.9009258,128.89,128.88,3.93790828]
[1725613728636,11.93,128.9,128.88,3.93790828]
[1725613728844,15.74209767,128.9,128.88,3.93790828]
[1725613729349,19.62159767,128.9,128.88,3.93790828]
[1725613729542,15.74209767,128.9,128.88,3.93790828]
[1725613730346,0.0565639,128.91,128.88,0.05780828]
[1725613730547,3.89855885,128.91,128.88,0.05780828]
[1725613731348,3.89855885,128.91,128.89,3.8796]
[1725613732646,7.77785885,128.91,128.89,3.8796]
[1725613735853,3.89855885,128.91,128.89,3.8796]
[1725613736950,4.03422621,128.91,128.9,3.8795]
[1725613738351,4.03422621,128.91,128.89,3.8796]
[1725613742151,7.91342621,128.91,128.89,3.8796]
[1725613743656,7.91342621,128.91,128.88,3.93780828]
[1725613743657,3.8796,128.9,128.88,3.93780828]
[1725613743850,4.03422621,128.91,128.88,0.05780828]
[1725613743851,11.93,128.89,128.88,0.05780828]
[1725613744356,15.8098,128.89,128.88,0.05780828]
[1725613745660,3.8797,128.9,128.88,0.05780828]
[1725613746053,4.03422621,128.91,128.88,0.05780828]
[1725613746451,7.91362621,128.91,128.88,3.93780828]
[1725613749259,3.8796,128.9,128.88,3.93780828]
[1725613750456,7.91362621,128.91,128.88,3.93780828]
[1725613751558,3.8796,128.9,128.88,3.93780828]
[1725613752359,3.8798,128.89,128.88,0.05780828]
[1725613752857,15.96422621,128.91,128.88,0.05780828]
[1725613752858,3.8797,128.9,128.88,0.05780828]
[1725613753257,15.96422621,128.91,128.88,0.05780828]
[1725613753862,3.8795,128.9,128.88,0.05780828]
[1725613754064,15.96422621,128.91,128.88,0.05780828]
[1725613754466,3.8798,128.89,128.88,0.05780828]
[1725613756863,15.8098,128.89,128.88,0.05780828]
[1725613757069,3.8813,128.85,128.79,11.93]
[1725613757261,15.88778231,128.84,128.78,4.1818]
[1725613757462,3.8817,128.83,128.78,4.1818]
[1725613757971,0.04994715,128.82,128.8,3.8823]
[1725613758269,0.04994715,128.82,128.79,0.05840794]
[1725613758270,3.93204715,128.82,128.79,0.05840794]
[1725613758567,3.93204715,128.82,128.79,3.94110794]
[1725613763575,0.04994715,128.82,128.8,3.8823]
[1725613764274,0.04994715,128.82,128.8,3.8825]
[1725613766777,0.04994715,128.82,128.81,3.8822]
[1725613771387,0.04994715,128.82,128.8,3.8823]
[1725613771585,0.04994715,128.82,128.79,0.05840794]
[1725613771786,15.86204715,128.82,128.79,3.94100794]
[1725613771991,15.86204715,128.82,128.79,0.05840794]
[1725613771992,11.97994715,128.82,128.79,0.05840794]
[1725613772185,11.93,128.8,128.79,0.05840794]
[1725613772392,15.8125,128.8,128.79,0.05840794]
[1725613774094,16.09812665,128.8,128.79,0.05840794]
[1725613774289,3.8834,128.78,128.74,3.8842]
[1725613774495,11.93,128.77,128.71,11.93]
[1725613774698,95.32149138,128.82,128.7,7.96186777]
[1725613774699,11.93,128.75,128.7,4.1219]
[1725613775007,11.93,128.73,128.68,3.86345749]
[1725613775305,11.93,128.73,128.67,11.93]
[1725613775603,0.05662518,128.72,128.7,3.8853]
[1725613776302,0.05662518,128.72,128.71,3.8852]
[1725613777000,0.05662518,128.72,128.69,0.05212872]
[1725613777001,11.98662518,128.72,128.69,0.05212872]
[1725613777201,11.93,128.7,128.69,0.05212872]
[1725613777505,11.93,128.71,128.69,0.05212872]
[1725613777701,0.05662518,128.72,128.69,0.05212872]
[1725613778098,0.05662518,128.72,128.69,3.93782872]
[1725613779805,0.05662518,128.72,128.7,3.8854]
[1725613784811,11.93,128.71,128.69,0.05212872]
[1725613785013,11.93,128.7,128.69,0.05212872]
[1725613785908,15.8155,128.7,128.69,0.05212872]
[1725613786507,3.8864,128.68,128.65,3.887]
[1725613786817,11.93,128.67,128.65,3.887]
[1725613787617,11.98807617,128.67,128.65,3.94394774]
[1725613788419,0.05807617,128.67,128.65,3.94394774]
[1725613790317,0.05807617,128.67,128.66,3.8867]
[1725613797018,15.87467617,128.67,128.65,0.05694774]
[1725613797820,7.82869673,128.66,128.65,0.05694774]
[1725613798020,3.94199673,128.66,128.65,0.05694774]
[1725613800128,15.87467617,128.67,128.65,3.94394774]